fUSD/lending_fUSD_20251014
["ID","MTS","AMOUNT","RATE_DAILY","PERIOD"]
[391282301,1760466651123,-1536.38,0.00016438,2]
[391282302,1760466651133,-1014.45,0.00016438,2]
[391282303,1760466651143,-688.33,0.00016438,2]
[391282304,1760466651152,-500.0,0.00016438,2]
[391282305,1760466651162,-500.0,0.00016438,2]
[391282306,1760466651172,-1004.06,0.00016438,2]
[391282307,1760466651182,-500.0,0.00016438,2]
[391282308,1760466651191,-500.0,0.00016438,2]
[391282309,1760466651202,-500.0,0.00016438,2]
[391282310,1760466651211,-611.32,0.00016438,2]
[391282311,1760466651222,-500.0,0.00016438,2]
[391282312,1760466651232,-500.0,0.00016438,2]
[391282313,1760466651243,-500.0,0.00016438,2]
[391282314,1760466651253,-500.0,0.00016438,2]
[391282315,1760466651263,-500.0,0.00016438,2]
[391282316,1760466651273,-500.0,0.00016438,2]
[391282317,1760466651283,-626.01,0.00016438,2]
[391282318,1760466651293,-526.15,0.00016438,2]
[391282319,1760466651303,-964.43,0.00016438,2]
[391282320,1760466651466,-500.0,0.00016438,2]
[391282321,1760466651483,-1716.99,0.00016438,2]
[391282322,1760466651493,-1162.97,0.00016438,2]
[391282323,1760466651503,-500.0,0.00016438,2]
[391282324,1760466651513,-1128.56,0.00016438,2]
[391282325,1760466651522,-553.27,0.00016438,2]
[391282326,1760466651541,-500.0,0.00016438,2]
[391282327,1760466651551,-500.0,0.00016438,2]
[391282328,1760466651561,-538.66,0.00016438,2]
[391282329,1760466651574,-648.11,0.00016438,2]
[391282330,1760466651583,-946.26,0.00016438,2]
[391282331,1760466651593,-500.0,0.00016438,2]
[391282332,1760466651603,-1778.67,0.00016438,2]
[391282333,1760466651612,-151.0,0.00016438,2]
[391282334,1760466651621,-151.0,0.00016438,2]
[391282335,1760466651631,-151.0,0.00016438,2]
[391282336,1760466651640,-151.0,0.00016438,2]
[391282337,1760466651649,-167.693608,0.00016438,2]
[391282338,1760466651659,-278.68001475,0.00016438,2]
[391282339,1760466651668,-1567.47,0.00016438,2]
[391282340,1760466651678,-1092.04,0.00016438,2]
[391282341,1760466651687,-500.0,0.00016438,2]
[391282342,1760466651697,-1889.25,0.00016438,2]
[391282343,1760466651706,-500.0,0.00016438,2]
[391282344,1760466651717,-500.0,0.00016438,2]
[391282345,1760466651726,-500.0,0.00016438,2]
[391282346,1760466651735,-550.28,0.00016438,2]
[391282347,1760466651744,-2830.66,0.00016438,2]
[391282348,1760466651753,-500.0,0.00016438,2]
[391282349,1760466651762,-1422.92,0.00016438,2]
[391282350,1760466651772,-658.38,0.00016438,2]
[391282351,1760466651781,-151.0,0.00016438,2]
[391282352,1760466651791,-1055.4,0.00016438,2]
[391282353,1760466651800,-151.0,0.00016438,2]
[391282354,1760466651809,-1056.54,0.00016438,2]
[391282355,1760466651819,-500.0,0.00016438,2]
[391282356,1760466651828,-151.0,0.00016438,2]
[391282357,1760466651837,-151.0,0.00016438,2]
[391282358,1760466651847,-151.0,0.00016438,2]
[391282359,1760466651856,-151.0,0.00016438,2]
[391282360,1760466651866,-500.0,0.00016438,2]
[391282361,1760466651875,-151.0,0.00016438,2]
[391282362,1760466651884,-151.0,0.00016438,2]
[391282363,1760466651894,-151.0,0.00016438,2]
[391282364,1760466651903,-151.0,0.00016438,2]
[391282365,1760466651912,-500.0,0.00016438,2]
[391282366,1760466651921,-151.0,0.00016438,2]
[391282367,1760466651931,-1106.31,0.00016438,2]
[391282368,1760466651940,-1963.81,0.00016438,2]
[391282369,1760466651950,-587.92,0.00016438,2]
[391282370,1760466651959,-278.53387869,0.00016438,2]
[391282371,1760466651968,-500.0,0.00016438,2]
[391282372,1760466651978,-500.0,0.00016438,2]
[391282373,1760466651987,-151.0,0.00016438,2]
[391282374,1760466651996,-151.0,0.00016438,2]
[391282375,1760466652006,-151.0,0.00016438,2]
[391282376,1760466652015,-664.25,0.00016438,2]
[391282377,1760466652025,-151.0,0.00016438,2]
[391282378,1760466652034,-625.4574833,0.00016438,2]
[391282379,1760466652044,-151.0,0.00016438,2]
[391282380,1760466652053,-500.0,0.00016438,2]
[391282381,1760466652062,-151.0,0.00016438,2]
[391282382,1760466652071,-500.0,0.00016438,2]
[391282383,1760466652081,-500.0,0.00016438,2]
[391282384,1760466652091,-151.0,0.00016438,2]
[391282385,1760466652100,-500.0,0.00016438,2]
[391282386,1760466652109,-861.11,0.00016438,2]
[391282387,1760466652119,-500.0,0.00016438,2]
[391282388,1760466652128,-500.0,0.00016438,2]
[391282389,1760466652138,-500.0,0.00016438,2]
[391282390,1760466652147,-539.36,0.00016438,2]
[391282391,1760466652157,-2903.04,0.00016438,2]
[391282392,1760466652166,-537.87,0.00016438,2]
[391282393,1760466652175,-1178.06,0.00016438,2]
[391282394,1760466652185,-500.0,0.00016438,2]
[391282395,1760466652194,-500.0,0.00016438,2]
[391282396,1760466652204,-151.0,0.00016438,2]
[391282397,1760466652213,-1718.7,0.00016438,2]
[391282398,1760466652222,-740.89,0.00016438,2]
[391282399,1760466652231,-2219.52,0.00016438,2]
[391282400,1760466652240,-151.0,0.00016438,2]
[391282401,1760466652249,-151.0,0.00016438,2]
[391282402,1760466652258,-151.0,0.00016438,2]
[391282403,1760466652268,-151.0,0.00016438,2]
[391282404,1760466652278,-154.976859,0.00016438,2]
[391282405,1760466652288,-500.0,0.00016438,2]
[391282406,1760466652297,-116.29347855,0.00016438,2]
[391282407,1760466652395,-885.45652145,0.00016438,2]
[391282408,1760466652409,-500.0,0.00016438,2]
[391282409,1760466652419,-1979.65,0.00016438,2]
[391282410,1760466652428,-1469.72,0.00016438,2]
[391282411,1760466652438,-1385.68,0.00016438,2]
[391282412,1760466652452,-1385.68,0.00016438,2]
[391282413,1760466652461,-623.66,0.00016438,2]
[391282414,1760466652472,-500.0,0.00016438,2]
[391282415,1760466652483,-500.0,0.00016438,2]
[391282416,1760466652493,-508.67,0.00016438,2]
[391282417,1760466652502,-500.0,0.00016438,2]
[391282418,1760466652512,-1223.17,0.00016438,2]
[391282419,1760466652522,-500.0,0.00016438,2]
[391282420,1760466652531,-528.5,0.00016438,2]
[391282421,1760466652540,-748.05,0.00016438,2]
[391282422,1760466652550,-500.0,0.00016438,2]
[391282423,1760466652559,-500.0,0.00016438,2]
[391282424,1760466652569,-1067.39,0.00016438,2]
[391282425,1760466652580,-500.0,0.00016438,2]
[391282426,1760466652589,-500.0,0.00016438,2]
[391282427,1760466652599,-703.59,0.00016438,2]
[391282428,1760466652608,-1332.11,0.00016438,2]
[391282429,1760466652617,-500.0,0.00016438,2]
[391282430,1760466652626,-500.0,0.00016438,2]
[391282431,1760466652635,-500.0,0.00016438,2]
[391282432,1760466652645,-1329.98,0.00016438,2]
[391282433,1760466652654,-523.68858908,0.00016438,2]
[391282434,1760466652663,-1146.01,0.00016438,2]
[391282435,1760466652672,-500.0,0.00016438,2]
[391282436,1760466652681,-1183.98,0.00016438,2]
[391282437,1760466652698,-651.5,0.00016438,2]
[391282438,1760466652707,-1699.37,0.00016438,2]
[391282439,1760466652716,-500.0,0.00016438,2]
[391282440,1760466652726,-500.0,0.00016438,2]
[391282441,1760466652735,-1542.06,0.00016438,2]
[391282442,1760466652744,-153.321599,0.00016438,2]
[391282443,1760466652753,-500.0,0.00016438,2]
[391282444,1760466652762,-500.0,0.00016438,2]
[391282445,1760466652771,-500.0,0.00016438,2]
[391282446,1760466652781,-500.0,0.00016438,2]
[391282447,1760466652798,-524.6,0.00016438,2]
[391282448,1760466652808,-2681.95,0.00016438,2]
[391282449,1760466652817,-500.0,0.00016438,2]
[391282450,1760466652829,-970.1,0.00016438,2]
[391282451,1760466652840,-500.0,0.00016438,2]
[391282452,1760466652849,-500.0,0.00016438,2]
[391282453,1760466652860,-1275.66,0.00016438,2]
[391282454,1760466652870,-979.83,0.00016438,2]
[391282455,1760466652879,-599.64,0.00016438,2]
[391282456,1760466652888,-500.0,0.00016438,2]
[391282457,1760466652897,-500.0,0.00016438,2]
[391282458,1760466652907,-156.368487,0.00016438,2]
[391282459,1760466652916,-151.0,0.00016438,2]
[391282460,1760466652925,-151.0,0.00016438,2]
[391282461,1760466652935,-500.0,0.00016438,2]
[391282462,1760466652944,-500.0,0.00016438,2]
[391282463,1760466652953,-500.0,0.00016438,2]
[391282464,1760466652962,-500.0,0.00016438,2]
[391282465,1760466652972,-151.0,0.00016438,2]
[391282466,1760466652981,-500.0,0.00016438,2]
[391282467,1760466652990,-500.0,0.00016438,2]
[391282468,1760466653000,-948.3,0.00016438,2]
[391282469,1760466653009,-500.0,0.00016438,2]
[391282470,1760466653018,-3762.75,0.00016438,2]
[391282471,1760466653027,-1430.76,0.00016438,2]
[391282472,1760466653037,-500.0,0.00016438,2]
[391282473,1760466653047,-500.0,0.00016438,2]
[391282474,1760466653056,-500.0,0.00016438,2]
[391282475,1760466653066,-151.0,0.00016438,2]
[391282476,1760466653077,-500.0,0.00016438,2]
[391282477,1760466653086,-151.0,0.00016438,2]
[391282478,1760466653095,-1163.32,0.00016438,2]
[391282479,1760466653105,-151.0,0.00016438,2]
[391282480,1760466653114,-500.0,0.00016438,2]
[391282481,1760466653124,-231.664832,0.00016438,2]
[391282482,1760466653133,-1823.39,0.00016438,2]
[391282483,1760466653143,-597.25,0.00016438,2]
[391282484,1760466653152,-1188.18,0.00016438,2]
[391282485,1760466653162,-500.0,0.00016438,2]
[391282486,1760466653173,-500.0,0.00016438,2]
[391282487,1760466653183,-151.0,0.00016438,2]
[391282488,1760466653192,-548.43,0.00016438,2]
[391282489,1760466653201,-151.0,0.00016438,2]
[391282490,1760466653211,-151.0,0.00016438,2]
[391282491,1760466653220,-262.672158,0.00016438,2]
[391282492,1760466653230,-3052.4,0.00016438,2]
[391282493,1760466653240,-500.0,0.00016438,2]
[391282494,1760466653251,-500.0,0.00016438,2]
[391282495,1760466653260,-500.0,0.00016438,2]
[391282496,1760466653271,-525.98,0.00016438,2]
[391282497,1760466653280,-1282.52,0.00016438,2]
[391282498,1760466653290,-1429.16,0.00016438,2]
[391282499,1760466653300,-500.0,0.00016438,2]
[391282500,1760466653310,-500.0,0.00016438,2]
[391282501,1760466653322,-500.0,0.00016438,2]
[391282502,1760466653332,-500.0,0.00016438,2]
[391282503,1760466653342,-500.0,0.00016438,2]
[391282504,1760466653353,-284.98374,0.00016438,2]
[391282505,1760466653364,-500.0,0.00016438,2]
[391282506,1760466653375,-500.0,0.00016438,2]
[391282507,1760466653385,-1704.73,0.00016438,2]
[391282508,1760466653395,-500.0,0.00016438,2]
[391282509,1760466653407,-151.0,0.00016438,2]
[391282510,1760466653418,-500.0,0.00016438,2]
[391282511,1760466653428,-151.0,0.00016438,2]
[391282512,1760466653438,-2368.14,0.00016438,2]
[391282513,1760466653450,-500.0,0.00016438,2]
[391282514,1760466653460,-753.69,0.00016438,2]
[391282515,1760466653470,-500.0,0.00016438,2]
[391282516,1760466653481,-151.0,0.00016438,2]
[391282517,1760466653491,-2477.64,0.00016438,2]
[391282518,1760466653501,-151.0,0.00016438,2]
[391282519,1760466653513,-500.0,0.00016438,2]
[391282520,1760466653523,-500.0,0.00016438,2]
[391282521,1760466653533,-500.0,0.00016438,2]
[391282522,1760466653543,-1121.64,0.00016438,2]
[391282523,1760466653553,-500.0,0.00016438,2]
[391282524,1760466653563,-500.0,0.00016438,2]
[391282525,1760466653574,-500.0,0.00016438,2]
[391282526,1760466653584,-500.0,0.00016438,2]
[391282527,1760466653595,-3370.18,0.00016438,2]
[391282528,1760466653605,-500.0,0.00016438,2]
[391282529,1760466653615,-500.0,0.00016438,2]
[391282530,1760466653625,-500.0,0.00016438,2]
[391282531,1760466653636,-500.0,0.00016438,2]
[391282532,1760466653647,-1116.65,0.00016438,2]
[391282533,1760466653656,-500.0,0.00016438,2]
[391282534,1760466653666,-840.63,0.00016438,2]
[391282535,1760466653676,-500.0,0.00016438,2]
[391282536,1760466653686,-1249.39,0.00016438,2]
[391282537,1760466653696,-500.0,0.00016438,2]
[391282538,1760466653705,-500.0,0.00016438,2]
[391282539,1760466653715,-500.0,0.00016438,2]
[391282540,1760466653725,-500.0,0.00016438,2]
[391282541,1760466653735,-1051.41,0.00016438,2]
[391282542,1760466653745,-500.0,0.00016438,2]
[391282543,1760466653756,-1785.03,0.00016438,2]
[391282544,1760466653767,-1179.95,0.00016438,2]
[391282545,1760466653776,-1585.23,0.00016438,2]
[391282546,1760466653787,-151.0,0.00016438,2]
[391282547,1760466653797,-151.0,0.00016438,2]
[391282548,1760466653808,-151.976857,0.00016438,2]
[391282549,1760466653819,-151.0,0.00016438,2]
[391282550,1760466653831,-680.23,0.00016438,2]
[391282551,1760466653840,-211.92311134,0.00016438,2]
[391282552,1760466653850,-1390.77,0.00016438,2]
[391282553,1760466653861,-500.0,0.00016438,2]
[391282554,1760466653872,-500.0,0.00016438,2]
[391282555,1760466653882,-500.0,0.00016438,2]
[391282556,1760466653892,-500.0,0.00016438,2]
[391282557,1760466653902,-1746.65,0.00016438,2]
[391282558,1760466653912,-500.0,0.00016438,2]
[391282559,1760466653922,-500.0,0.00016438,2]
[391282560,1760466653932,-500.0,0.00016438,2]
[391282561,1760466653942,-558.9,0.00016438,2]
[391282562,1760466653952,-539.28,0.00016438,2]
[391282563,1760466653962,-500.0,0.00016438,2]
[391282564,1760466653972,-729.51,0.00016438,2]
[391282565,1760466653982,-663.59,0.00016438,2]
[391282566,1760466653992,-2113.46,0.00016438,2]
[391282567,1760466654003,-500.0,0.00016438,2]
[391282568,1760466654013,-500.0,0.00016438,2]
[391282569,1760466654023,-500.0,0.00016438,2]
[391282570,1760466654032,-207.647707,0.00016438,2]
[391282571,1760466654042,-598.36,0.00016438,2]
[391282572,1760466654051,-912.4,0.00016438,2]
[391282573,1760466654062,-500.0,0.00016438,2]
[391282574,1760466654073,-500.0,0.00016438,2]
[391282575,1760466654083,-500.0,0.00016438,2]
[391282576,1760466654093,-500.0,0.00016438,2]
[391282577,1760466654103,-1778.91,0.00016438,2]
[391282578,1760466654114,-500.0,0.00016438,2]
[391282579,1760466654124,-500.0,0.00016438,2]
[391282580,1760466654134,-1020.4,0.00016438,2]
[391282581,1760466654144,-1218.96,0.00016438,2]
[391282582,1760466654154,-500.0,0.00016438,2]
[391282583,1760466654164,-516.86,0.00016438,2]
[391282584,1760466654174,-1266.54,0.00016438,2]
[391282585,1760466654185,-983.43,0.00016438,2]
[391282586,1760466654195,-151.0,0.00016438,2]
[391282587,1760466654204,-500.0,0.00016438,2]
[391282588,1760466654215,-1207.7,0.00016438,2]
[391282589,1760466654227,-500.0,0.00016438,2]
[391282590,1760466654237,-500.0,0.00016438,2]
[391282591,1760466654247,-500.0,0.00016438,2]
[391282592,1760466654256,-500.0,0.00016438,2]
[391282593,1760466654266,-500.0,0.00016438,2]
[391282594,1760466654276,-500.0,0.00016438,2]
[391282595,1760466654287,-1299.32,0.00016438,2]
[391282596,1760466654297,-2692.38,0.00016438,2]
[391282597,1760466654306,-810.4,0.00016438,2]
[391282598,1760466654316,-500.0,0.00016438,2]
[391282599,1760466654327,-500.0,0.00016438,2]
[391282600,1760466654337,-500.0,0.00016438,2]
[391282601,1760466654347,-3128.41,0.00016438,2]
[391282602,1760466654357,-500.0,0.00016438,2]
[391282603,1760466654367,-854.28,0.00016438,2]
[391282604,1760466654376,-151.0,0.00016438,2]
[391282605,1760466654385,-151.0,0.00016438,2]
[391282606,1760466654396,-500.0,0.00016438,2]
[391282607,1760466654407,-500.0,0.00016438,2]
[391282608,1760466654417,-2411.74,0.00016438,2]
[391282609,1760466654427,-821.4,0.00016438,2]
[391282610,1760466654437,-915.7,0.00016438,2]
[391282611,1760466654447,-500.0,0.00016438,2]
[391282612,1760466654457,-500.0,0.00016438,2]
[391282613,1760466654466,-500.0,0.00016438,2]
[391282614,1760466654476,-243.7447617,0.00016438,2]
[391282615,1760466654488,-724.47,0.00016438,2]
[391282616,1760466654498,-500.0,0.00016438,2]
[391282617,1760466654509,-500.0,0.00016438,2]
[391282618,1760466654525,-1879.33,0.00016438,2]
[391282619,1760466654535,-500.0,0.00016438,2]
[391282620,1760466654546,-665.75,0.00016438,2]
[391282621,1760466654556,-560.62,0.00016438,2]
[391282622,1760466654566,-766.71,0.00016438,2]
[391282623,1760466654577,-252.96898788,0.00016438,2]
[391282624,1760466654587,-500.0,0.00016438,2]
[391282625,1760466654598,-500.0,0.00016438,2]
[391282626,1760466654607,-500.0,0.00016438,2]
[391282627,1760466654617,-4492.07,0.00016438,2]
[391282628,1760466654627,-1047.88,0.00016438,2]
[391282629,1760466654637,-736.67,0.00016438,2]
[391282630,1760466654647,-503.93906314,0.00016438,2]
[391282631,1760466654656,-2891.45,0.00016438,2]
[391282632,1760466654666,-500.0,0.00016438,2]
[391282633,1760466654676,-500.0,0.00016438,2]
[391282634,1760466654685,-500.0,0.00016438,2]
[391282635,1760466654694,-500.0,0.00016438,2]
[391282636,1760466654704,-1747.93,0.00016438,2]
[391282637,1760466654714,-2620.62,0.00016438,2]
[391282638,1760466654724,-544.77,0.00016438,2]
[391282640,1760466654733,-500.0,0.00016438,2]
[391282641,1760466654743,-500.0,0.00016438,2]
[391282643,1760466654752,-500.0,0.00016438,2]
[391282644,1760466654762,-703.84,0.00016438,2]
[391282645,1760466654771,-500.0,0.00016438,2]
[391282646,1760466654781,-1795.72,0.00016438,2]
[391282647,1760466654791,-553.53,0.00016438,2]
[391282648,1760466654801,-1520.5,0.00016438,2]
[391282649,1760466654810,-507.45,0.00016438,2]
[391282650,1760466654819,-500.0,0.00016438,2]
[391282651,1760466654830,-256.343041,0.00016438,2]
[391282652,1760466654839,-1111.78,0.00016438,2]
[391282653,1760466654849,-151.0,0.00016438,2]
[391282654,1760466654859,-151.0,0.00016438,2]
[391282655,1760466654869,-151.0,0.00016438,2]
[391282656,1760466654879,-151.0,0.00016438,2]
[391282657,1760466654890,-151.0,0.00016438,2]
[391282658,1760466654900,-151.0,0.00016438,2]
[391282659,1760466654910,-500.0,0.00016438,2]
[391282660,1760466654919,-4334.19,0.00016438,2]
[391282661,1760466654929,-991.03,0.00016438,2]
[391282662,1760466654938,-500.0,0.00016438,2]
[391282663,1760466654948,-500.0,0.00016438,2]
[391282664,1760466654957,-500.0,0.00016438,2]
[391282665,1760466654967,-646.91,0.00016438,2]
[391282666,1760466654976,-152.652321,0.00016438,2]
[391282667,1760466654986,-914.28,0.00016438,2]
[391282668,1760466654996,-500.0,0.00016438,2]
[391282669,1760466655006,-500.0,0.00016438,2]
[391282670,1760466655016,-3333.29,0.00016438,2]
[391282671,1760466655027,-228.942329,0.00016438,2]
[391282672,1760466655037,-153.894944,0.00016438,2]
[391282673,1760466655046,-5833.37,0.00016438,2]
[391282674,1760466655056,-1426.62,0.00016438,2]
[391282675,1760466655066,-500.0,0.00016438,2]
[391282676,1760466655076,-600.12,0.00016438,2]
[391282677,1760466655085,-646.48,0.00016438,2]
[391282678,1760466655095,-541.31,0.00016438,2]
[391282679,1760466655105,-500.0,0.00016438,2]
[391282680,1760466655114,-500.0,0.00016438,2]
[391282681,1760466655125,-500.0,0.00016438,2]
[391282682,1760466655134,-500.0,0.00016438,2]
[391282683,1760466655144,-500.0,0.00016438,2]
[391282684,1760466655154,-621.2,0.00016438,2]
[391282685,1760466655163,-682.78,0.00016438,2]
[391282686,1760466655172,-500.0,0.00016438,2]
[391282687,1760466655182,-584.81,0.00016438,2]
[391282688,1760466655192,-3440.48,0.00016438,2]
[391282689,1760466655201,-500.0,0.00016438,2]
[391282690,1760466655211,-2241.42,0.00016438,2]
[391282691,1760466655220,-500.0,0.00016438,2]
[391282692,1760466655230,-1149.16,0.00016438,2]
[391282693,1760466655240,-554.72,0.00016438,2]
[391282694,1760466655250,-5050.49,0.00016438,2]
[391282695,1760466655259,-500.0,0.00016438,2]
[391282696,1760466655269,-937.96,0.00016438,2]
[391282697,1760466655278,-2503.24,0.00016438,2]
[391282698,1760466655288,-1977.28,0.00016438,2]
[391282699,1760466655297,-1028.6,0.00016438,2]
[391282700,1760466655307,-500.0,0.00016438,2]
[391282701,1760466655316,-589.35,0.00016438,2]
[391282702,1760466655326,-500.0,0.00016438,2]
[391282703,1760466655335,-1063.74,0.00016438,2]
[391282704,1760466655344,-3074.99,0.00016438,2]
[391282705,1760466655354,-500.0,0.00016438,2]
[391282706,1760466655363,-730.12,0.00016438,2]
[391282707,1760466655372,-594.6,0.00016438,2]
[391282708,1760466655382,-639.38,0.00016438,2]
[391282709,1760466655392,-2005.88,0.00016438,2]
[391282710,1760466655404,-694.74,0.00016438,2]
[391282711,1760466655414,-689.89,0.00016438,2]
[391282712,1760466655424,-500.0,0.00016438,2]
[391282713,1760466655434,-3169.28,0.00016438,2]
[391282714,1760466655443,-872.88,0.00016438,2]
[391282715,1760466655684,-957.57,0.00016438,2]
[391282716,1760466655696,-500.0,0.00016438,2]
[391282717,1760466655705,-366.59596622,0.00016438,2]
[391282718,1760466655715,-500.0,0.00016438,2]
[391282719,1760466655724,-500.0,0.00016438,2]
[391282720,1760466655733,-500.0,0.00016438,2]
[391282721,1760466655742,-500.0,0.00016438,2]
[391282722,1760466655751,-653.75,0.00016438,2]
[391282723,1760466655760,-1856.69,0.00016438,2]
[391282724,1760466655771,-789.06,0.00016438,2]
[391282725,1760466655780,-1020.6,0.00016438,2]
[391282726,1760466655789,-500.0,0.00016438,2]
[391282727,1760466655798,-731.98,0.00016438,2]
[391282728,1760466655807,-1302.34,0.00016438,2]
[391282729,1760466655816,-500.0,0.00016438,2]
[391282730,1760466655825,-500.0,0.00016438,2]
[391282731,1760466655834,-151.0,0.00016438,2]
[391282732,1760466655844,-500.0,0.00016438,2]
[391282733,1760466655853,-500.0,0.00016438,2]
[391282734,1760466655862,-500.0,0.00016438,2]
[391282735,1760466655871,-151.0,0.00016438,2]
[391282736,1760466655881,-802.05,0.00016438,2]
[391282737,1760466655890,-500.0,0.00016438,2]
[391282738,1760466655900,-1447.61,0.00016438,2]
[391282739,1760466655909,-500.0,0.00016438,2]
[391282740,1760466655919,-500.0,0.00016438,2]
[391282741,1760466655928,-2409.82,0.00016438,2]
[391282742,1760466655939,-545.69,0.00016438,2]
[391282743,1760466655948,-275.17733264,0.00016438,2]
[391282744,1760466655958,-671.1,0.00016438,2]
[391282745,1760466655967,-500.0,0.00016438,2]
[391282746,1760466655976,-500.0,0.00016438,2]
[391282747,1760466655987,-500.0,0.00016438,2]
[391282748,1760466655996,-708.06,0.00016438,2]
[391282749,1760466656006,-568.49,0.00016438,2]
[391282750,1760466656015,-757.91,0.00016438,2]
[391282751,1760466656024,-500.0,0.00016438,2]
[391282752,1760466656033,-2303.72,0.00016438,2]
[391282753,1760466656042,-787.52,0.00016438,2]
[391282754,1760466656052,-1388.41,0.00016438,2]
[391282755,1760466656062,-500.0,0.00016438,2]
[391282756,1760466656071,-9316.63,0.00016438,2]
[391282757,1760466656088,-1471.37,0.00016438,2]
[391282758,1760466656098,-500.0,0.00016438,2]
[391282759,1760466656107,-542.01,0.00016438,2]
[391282760,1760466656117,-500.0,0.00016438,2]
[391282761,1760466656126,-513.64,0.00016438,2]
[391282762,1760466656136,-2263.47,0.00016438,2]
[391282763,1760466656146,-1522.9,0.00016438,2]
[391282764,1760466656155,-500.0,0.00016438,2]
[391282765,1760466656164,-500.0,0.00016438,2]
[391282766,1760466656174,-524.52,0.00016438,2]
[391282767,1760466656183,-588.38,0.00016438,2]
[391282768,1760466656192,-1038.91,0.00016438,2]
[391282769,1760466656202,-876.46,0.00016438,2]
[391282770,1760466656211,-151.0,0.00016438,2]
[391282771,1760466656221,-500.0,0.00016438,2]
[391282772,1760466656230,-151.0,0.00016438,2]
[391282773,1760466656240,-151.0,0.00016438,2]
[391282774,1760466656250,-151.0,0.00016438,2]
[391282775,1760466656260,-500.0,0.00016438,2]
[391282776,1760466656269,-151.0,0.00016438,2]
[391282777,1760466656279,-539.510599,0.00016438,2]
[391282778,1760466656289,-151.0,0.00016438,2]
[391282779,1760466656298,-151.0,0.00016438,2]
[391282780,1760466656307,-539.510599,0.00016438,2]
[391282781,1760466656317,-1406.97,0.00016438,2]
[391282782,1760466656329,-539.510599,0.00016438,2]
[391282783,1760466656339,-1885.58,0.00016438,2]
[391282784,1760466656349,-539.510599,0.00016438,2]
[391282785,1760466656359,-539.510599,0.00016438,2]
[391282786,1760466656368,-1562.02,0.00016438,2]
[391282787,1760466656377,-539.510599,0.00016438,2]
[391282788,1760466656386,-539.510599,0.00016438,2]
[391282789,1760466656395,-500.0,0.00016438,2]
[391282790,1760466656406,-539.510599,0.00016438,2]
[391282791,1760466656417,-539.510599,0.00016438,2]
[391282792,1760466656427,-539.510599,0.00016438,2]
[391282793,1760466656436,-539.510599,0.00016438,2]
[391282794,1760466656447,-539.510599,0.00016438,2]
[391282795,1760466656457,-539.510599,0.00016438,2]
[391282796,1760466656467,-539.510599,0.00016438,2]
[391282797,1760466656477,-500.0,0.00016438,2]
[391282798,1760466656488,-539.510599,0.00016438,2]
[391282799,1760466656497,-500.0,0.00016438,2]
[391282800,1760466656507,-539.510599,0.00016438,2]
[391282801,1760466656516,-151.0,0.00016438,2]
[391282802,1760466656525,-539.510599,0.00016438,2]